Workbook

Sheet Introduction

Sheet Basic Black-Scholes Extract

Sheet Black-Scholes-Merton P(ITM)
A1: Merton's Six Inputs
A2: Stock price (S) at t=0 | B2: =C2/2 -> 20 | C2: 40
A3: Strike price (X) | B3: =C3 -> 25 | C3: 25
A4: Safe yield at horizon τ=T-t (r) | B4: =C4/100 -> 0.02 | C4: 2
A5: Dividend yield (ρ) | B5: =C5/100 -> 0.01 | C5: 1
A6: Option maturity (τ=T-t) years | B6: =C6/20 -> 1 | C6: 20
A7: Implied volatility (σ) | B7: =C7/100 -> 0.3 | C7: 30
A9: Merton's Workings
A10: d1 | B10: =IF(ISERROR((LN(B2/B3)+(B4-B5+0.5*B7^2)*B6)/(B7*SQRT(B6))),"N/A",(LN(B2/B3)+(B4-B5+0.5*B7^2)*B6)/(B7*SQRT(B6))) -> -0.5604785044
A11: d2 | B11: =IF(ISERROR(B10-B7*SQRT(B6)),"N/A",B10-B7*SQRT(B6)) -> -0.8604785044
A12: N(d1) | B12: =IF(ISERROR(NORMSDIST(B10)),"N/A",NORMSDIST(B10)) -> 0.2875765488
A13: N(d2) | B13: =IF(ISERROR(NORMSDIST(B11)),"N/A",NORMSDIST(B11)) -> 0.1947626639
A14: Delta = e(-ρ*τ)N(d1) | B14: =IF(B6>0,B12*EXP(-B5*B4),MAX(SIGN(B2-B3),0)) -> 0.2875190393
A15: Merton Call Price | B15: =IF(B6>0,B2*EXP(-B5*B6)*B12-EXP(-B4*B6)*B3*B13,MAX(B2-B3,0)) -> 0.921649669
A17: P*ever(ITM) (BBS, 2021, p. 127)
A18: α | B18: =(1/B7)*(B4-B5-0.5*B7^2) -> -0.1166666667
A19: b | B19: =(1/B7)*LN(B3/B2) -> 0.7438118377
A20: A*c | B20: =IF(B2>B3,"N/A",IF(ISERROR(EXP(2*B18*B19)*NORMSDIST(B11-2*B18*SQRT(B6))),"N/A",EXP(2*B18*B19)*NORMSDIST(B11-2*B18*SQRT(B6)))) -> 0.2230146504
A21: N(-d2) | B21: =IF(ISERROR(NORMSDIST(-B11)),"N/A",NORMSDIST(-B11)) -> 0.8052373361
A22: P*(ITM)=N(d2) | B22: =IF(ISERROR(NORMSDIST(B11)),"N/A",NORMSDIST(B11)) -> 0.1947626639
A23: P*ever(ITM)=N(d2)+A*c | B23: =IF(B2>B3,1,IF(ISERROR(B20+B22),"N/A",B20+B22)) -> 0.4177773142
H36: Probability
H37: This table was created using Data > Forecast > What If Analysis > Data Table
H38: First enter the formulae you want to carry over for different input values (highlighted yellow here).
H39: Then highlight these formulae and the input data and use the above menu commands.
H40: Then point "Column Input Cell" at the variable (CELL B2 in this case).
H41: Graph Title (I used ALT-ENTER to get line break):
H42: ="P*(ITM) and P*ever(ITM) X=" & TEXT(B3,"$00") &", τ=T-t=" & TEXT(B6,"0.0") &", σ=" & TEXT(B7,"0.00")&", r=" & TEXT(B4,"0.00")&", ρ=" & TEXT(B5,"0.00") -> P*(ITM) and P*ever(ITM) X=$25, τ=T-t=1.0, σ=0.30, r=0.02, ρ=0.01
G43: S | H43: P*(ITM) | I43: P*ever(ITM) | J43: Difference | K43: Step= | L43: 0.5
G44: =L43 -> 0.5 | H44: =B22 -> 0.1947626639 | I44: =B23 -> 0.4177773142
G45: =G44+$L$43 -> 1 | H45: 1.038848662e-27 | I45: 2.100152491e-27 | J45: =I45-H45 -> 1.061303829e-27
G46: =G45+$L$43 -> 1.5 | H46: 1.104206513e-21 | I46: 2.235625813e-21 | J46: =I46-H46 -> 1.1314193e-21
G47: 2 | H47: 6.961726603e-18 | I47: 1.41138685e-17 | J47: 7.152141896e-18
G48: 2.5 | H48: 3.299134196e-15 | I48: 6.696867786e-15 | J48: 3.39773359e-15
G49: 3 | H49: 3.379800661e-13 | I49: 6.868844705e-13 | J49: 3.489044045e-13
G50: 3.5 | H50: 1.27574275e-11 | I50: 2.595756961e-11 | J50: 1.320014211e-11
G51: 4 | H51: 2.403613326e-10 | I51: 4.896290999e-10 | J51: 2.492677673e-10
G52: 4.5 | H52: 2.72750933e-09 | I52: 5.562475529e-09 | J52: 2.834966199e-09
G53: 5 | H53: 2.109154003e-08 | I53: 4.306357149e-08 | J53: 2.197203146e-08
G54: 5.5 | H54: 1.210195726e-07 | I54: 2.47377553e-07 | J54: 1.263579804e-07
G55: 6 | H55: 5.475776227e-07 | I55: 1.12061974e-06 | J55: 5.730421172e-07
G56: 6.5 | H56: 2.04346271e-06 | I56: 4.186911771e-06 | J56: 2.14344906e-06
G57: 7 | H57: 6.506523268e-06 | I57: 1.334745971e-05 | J57: 6.840936444e-06
G58: 7.5 | H58: 1.81453151e-05 | I58: 3.726884689e-05 | J58: 1.91235318e-05
G59: 8 | H59: 4.52431609e-05 | I59: 9.304147569e-05 | J59: 4.779831478e-05
G60: 8.5 | H60: 0.000102530408 | I60: 0.0002111202941 | J60: 0.0001085898862
G61: 9 | H61: 0.0002140141185 | I61: 0.0004412510728 | J61: 0.0002272369543
G62: 9.5 | H62: 0.0004159650892 | I62: 0.0008587754264 | J62: 0.0004428103372
G63: 10 | H63: 0.0007596565014 | I63: 0.001570484159 | J63: 0.000810827658
G64: 10.5 | H64: 0.00131341603 | I64: 0.002719112848 | J64: 0.001405696818
G65: 11 | H65: 0.002163602113 | I65: 0.004485664575 | J65: 0.002322062463
G66: 11.5 | H66: 0.003414232978 | I66: 0.007088978957 | J66: 0.003674745978
G67: 12 | H67: 0.005185157525 | I67: 0.01078229131 | J67: 0.00559713378
G68: 12.5 | H68: 0.00760882879 | I68: 0.01584687711 | J68: 0.008238048319
G69: 13 | H69: 0.01082589476 | I69: 0.02258319586 | J69: 0.0117573011
G70: 13.5 | H70: 0.01497993691 | I70: 0.03130019153 | J70: 0.01632025462
G71: 14 | H71: 0.02021175366 | I71: 0.04230355172 | J71: 0.02209179806
G72: 14.5 | H72: 0.02665360212 | I72: 0.05588377002 | J72: 0.02923016789
G73: 15 | H73: 0.03442378445 | I73: 0.07230480828 | J73: 0.03788102383
G74: 15.5 | H74: 0.0436219039 | I74: 0.09179403807 | J74: 0.04817213417
G75: 16 | H75: 0.05432503447 | I75: 0.1145339789 | J75: 0.06020894444
G76: 16.5 | H76: 0.06658495768 | I76: 0.1406561696 | J76: 0.07407121195
G77: 17 | H77: 0.0804265315 | I77: 0.1702373291 | J77: 0.08981079763
G78: 17.5 | H78: 0.09584717738 | I78: 0.2032978002 | J78: 0.1074506229
G79: 18 | H79: 0.1128174062 | I79: 0.2398021354 | J79: 0.1269847292
G80: 18.5 | H80: 0.1312822556 | I80: 0.2796615814 | J80: 0.1483793258
G81: 19 | H81: 0.1511634801 | I81: 0.3227381516 | J81: 0.1715746716
G82: 19.5 | H82: 0.1723623188 | I82: 0.3688499392 | J82: 0.1964876203
G83: 20 | H83: 0.1947626639 | I83: 0.4177773142 | J83: 0.2230146504
G84: 20.5 | H84: 0.2182344603 | I84: 0.4692696635 | J84: 0.2510352033
G85: 21 | H85: 0.2426371844 | I85: 0.5230523579 | J85: 0.2804151735
G86: 21.5 | H86: 0.2678232686 | I86: 0.5788336754 | J86: 0.3110104069
G87: 22 | H87: 0.2936413639 | I87: 0.6363114541 | J87: 0.3426700902
G88: 22.5 | H88: 0.3199393564 | I88: 0.6951792948 | J88: 0.3752399384
G89: 23 | H89: 0.3465670774 | I89: 0.7551321851 | J89: 0.4085651077
G90: 23.5 | H90: 0.3733786673 | I90: 0.8158714561 | J90: 0.4424927888
G91: 24 | H91: 0.4002345748 | I91: 0.877109024 | J91: 0.4768744492
G92: 24.5 | H92: 0.4270031877 | I92: 0.9385709031 | J92: 0.5115677154
G93: 25 | H93: 0.453562103 | I93: 1 | J93: 0.546437897
G94: 25.5 | H94: 0.4797990586 | I94: 1 | J94: 0.5202009414
G95: 26 | H95: 0.5056125513 | I95: 1 | J95: 0.4943874487
G96: 26.5 | H96: 0.5309121731 | I96: 1 | J96: 0.4690878269
G97: 27 | H97: 0.5556187018 | I97: 1 | J97: 0.4443812982
G98: 27.5 | H98: 0.5796639794 | I98: 1 | J98: 0.4203360206
G99: 28 | H99: 0.6029906145 | I99: 1 | J99: 0.3970093855
G100: 28.5 | H100: 0.6255515419 | I100: 1 | J100: 0.3744484581
G101: 29 | H101: 0.6473094714 | I101: 1 | J101: 0.3526905286
G102: 29.5 | H102: 0.6682362532 | I102: 1 | J102: 0.3317637468
G103: 30 | H103: 0.6883121868 | I103: 1 | J103: 0.3116878132
G104: 30.5 | H104: 0.7075252953 | I104: 1 | J104: 0.2924747047
G105: 31 | H105: 0.7258705832 | I105: 1 | J105: 0.2741294168
G106: 31.5 | H106: 0.7433492966 | I106: 1 | J106: 0.2566507034
G107: 32 | H107: 0.7599681956 | I107: 1 | J107: 0.2400318044
G108: 32.5 | H108: 0.7757388517 | I108: 1 | J108: 0.2242611483
G109: 33 | H109: 0.7906769786 | I109: 1 | J109: 0.2093230214
G110: =G109+$L$43 -> 33.5 | H110: 0.8048018003 | I110: 1 | J110: =I110-H110 -> 0.1951981997
G111: 34 | H111: 0.8181354628 | I111: 1 | J111: 0.1818645372
G112: 34.5 | H112: 0.8307024911 | I112: 1 | J112: 0.1692975089
G113: 35 | H113: 0.8425292929 | I113: 1 | J113: 0.1574707071
G114: 35.5 | H114: 0.8536437086 | I114: 1 | J114: 0.1463562914
G115: 36 | H115: 0.8640746079 | I115: 1 | J115: 0.1359253921
G116: 36.5 | H116: 0.873851531 | I116: 1 | J116: 0.126148469
G117: 37 | H117: 0.883004372 | I117: 1 | J117: 0.116995628
G118: 37.5 | H118: 0.8915631035 | I118: 1 | J118: 0.1084368965
G119: 38 | H119: 0.8995575375 | I119: 1 | J119: 0.1004424625
G120: 38.5 | H120: 0.9070171229 | I120: 1 | J120: 0.09298287711
G121: 39 | H121: 0.9139707736 | I121: 1 | J121: 0.08602922644
G122: 39.5 | H122: 0.9204467267 | I122: 1 | J122: 0.07955327327
G123: 40 | H123: 0.9264724271 | I123: 1 | J123: 0.07352757287
G124: 40.5 | H124: 0.9320744351 | I124: 1 | J124: 0.06792556495
G125: 41 | H125: 0.9372783554 | I125: 1 | J125: 0.06272164463
G126: 41.5 | H126: 0.9421087853 | I126: 1 | J126: 0.05789121471
G127: 42 | H127: 0.9465892783 | I127: 1 | J127: 0.05341072169
G128: 42.5 | H128: 0.9507423224 | I128: 1 | J128: 0.04925767761
G129: 43 | H129: 0.9545893303 | I129: 1 | J129: 0.04541066966
G130: 43.5 | H130: 0.9581506406 | I130: 1 | J130: 0.0418493594
G131: 44 | H131: 0.9614455269 | I131: 1 | J131: 0.03855447314
G132: 44.5 | H132: 0.964492215 | I132: 1 | J132: 0.035507785
G133: 45 | H133: 0.967307906 | I133: 1 | J133: 0.03269209396
G134: 45.5 | H134: 0.969908804 | I134: 1 | J134: 0.03009119599
G135: 46 | H135: 0.9723101476 | I135: 1 | J135: 0.02768985239
G136: 46.5 | H136: 0.9745262448 | I136: 1 | J136: 0.02547375516
G137: 47 | H137: 0.9765705098 | I137: 1 | J137: 0.02342949017
G138: 47.5 | H138: 0.9784555011 | I138: 1 | J138: 0.02154449888
G139: 48 | H139: 0.9801929608 | I139: 1 | J139: 0.01980703921
G140: 48.5 | H140: 0.9817938541 | I140: 1 | J140: 0.01820614587
G141: 49 | H141: 0.9832684092 | I141: 1 | J141: 0.0167315908
G142: 49.5 | H142: 0.984626156 | I142: 1 | J142: 0.01537384396
G143: 50 | H143: 0.9858759653 | I143: 1 | J143: 0.0141240347
G144: 50.5 | H144: 0.9870260859 | I144: 1 | J144: 0.0129739141
